Workbook

Sheet Borçlanma ve Diğer Araç İhracı
A1: 2016 YILI İZAHNAME/İHRAÇ BELGESİ ONAYLANAN BORÇLANMA VE DİĞER SERMAYE PİYASASI ARAÇLARI ÖZET DURUM TABLOSU
A2: Sıra | B2: Şirket Adı | C2: Grubu | D2: Sermaye Piyasası Aracının Türü | E2: İzahname/İhraç Belgesi Başvuru Tarihi | F2: İşlemden Kaldırma/Olumsuz Sonuçlanma Tarihi | G2: İzahname/ihraç Belgesi Kurul Kararı Tarihi | H2: Satış Yöntemi | I2: Yurtiçi İhraç Limiti Nominal Tutar (TL) | J2: Yurtiçi İhraç Limiti Nominal Tutar ABD Doları Karşılığı* | K2: Yurtiçi Satışı Gerçekleşen Nominal Tutar (TL) | L2: Yurtiçi Satışa Hazır Nominal Tutar (TL) | M2: Yurtdışı İhraç Limiti Nominal Tutar | N2: Yurtdışı İhraç Limiti Para Birimi | O2: Yurtdışı Tertip İhraç Belgesi Verilen Nominal Tutar | P2: Yurtdışı Satışa Hazır Nominal Tutar | Q2: Yurtdışı Satışı Gerçekleşen Nominal Tutar (TL)**
A3: 1 | B3: Spektra Jeotek Sanayi ve Ticaret A.Ş. | C3: Reel Sektör | D3: Borçlanma Aracı | E3: 2015-11-10 | F3: - | G3: 2016-01-08 | H3: Tahsisli/Nitelikli Yatırımcı | I3: 100,000,000.00 | J3: =I3/2.993 -> 33,411,293.02 | K3: 0.00 | L3: =I3-K3 -> 100,000,000.00
A4: 2 | B4: Devir Faktoring A.Ş. | C4: Finansal Kurum | D4: Borçlanma Aracı | E4: 2015-11-17 | F4: - | G4: 2016-01-08 | H4: Nitelikli Yatırımcı | I4: 45,000,000.00 | J4: =I4/2.993 -> 15,035,081.86 | K4: 32,125,000.00 | L4: =I4-K4 -> 12,875,000.00
A5: 3 | B5: Türkiye Garanti Bankası A.Ş. | C5: Banka | D5: Borçlanma Aracı | E5: 2015-11-24 | F5: - | G5: 2016-01-08 | H5: Halka Arz | I5: 12,000,000,000.00 | J5: =I5/2.993 -> 4,009,355,162.04 | K5: 2,105,759,143.00 | L5: =I5-K5 -> 9,894,240,857.00
A6: 4 | B6: Güven Varlık Yönetimi A.Ş. | C6: Finansal Kurum | D6: Borçlanma Aracı | E6: 2015-12-04 | F6: - | G6: 2016-01-08 | H6: Nitelikli Yatırımcı | I6: 200,000,000.00 | J6: =I6/2.993 -> 66,822,586.03 | K6: 140,150,000.00 | L6: =I6-K6 -> 59,850,000.00
A7: 5 | B7: Say Reklamcılık Yapı Dekorasyon Proje Taahhüt Sanayi ve Ticaret A.Ş. | C7: Reel Sektör | D7: Borçlanma Aracı | E7: 2015-12-04 | F7: - | G7: 2016-01-08 | H7: Nitelikli Yatırımcı | I7: 50,000,000.00 | J7: =I7/2.993 -> 16,705,646.51 | K7: 20,000,000.00 | L7: =I7-K7 -> 30,000,000.00
A8: 6 | B8: Türkiye Vakıflar Bankası T.A.O. | C8: Banka | D8: Borçlanma Aracı | E8: 2015-12-16 | F8: - | G8: 2016-01-08 | H8: Yurt Dışı | I8: - | J8: - | K8: - | L8: - | M8: 5,000,000,000.00 | N8: ABD Doları | O8: 926,376,560.00 | P8: =M8-O8 -> 4,073,623,440.00 | Q8: 3,231,904,829.00
A9: 7 | B9: T.C. Ziraat Bankası A.Ş. | C9: Banka | D9: Borçlanma Aracı | E9: 2015-12-18 | F9: - | G9: 2016-01-08 | H9: Yurt Dışı | I9: - | J9: - | K9: - | L9: - | M9: 4,000,000,000.00 | N9: ABD Doları | O9: 606,574,190.00 | P9: =M9-O9 -> 3,393,425,810.00 | Q9: 2,125,991,060.00
A10: 8 | B10: Şeker Faktoring A.Ş. | C10: Finansal Kurum | D10: Borçlanma Aracı | E10: 2015-11-24 | F10: - | G10: 2016-01-14 | H10: Halka Arz/Nitelikli Yatırımcı/Tahsisli | I10: 100,000,000.00 | J10: =I10/3.0328 -> 32,972,830.39 | K10: 100,000,000.00 | L10: =I10-K10 -> 0.00
A11: 9 | B11: Alternatif Finansal Kiralama A.Ş. | C11: Finansal Kurum | D11: Borçlanma Aracı | E11: 2015-12-10 | F11: - | G11: 2016-01-27 | H11: Nitelikli Yatırımcı | I11: 300,000,000.00 | J11: =I11/3.0032 -> 99,893,446.99 | K11: 300,000,000.00 | L11: =I11-K11 -> 0.00
A12: 10 | B12: T.C. Ziraat Bankası A.Ş. | C12: Banka | D12: Borçlanma Aracı | E12: 2015-12-18 | F12: - | G12: 2016-01-27 | H12: Halka Arz/Nitelikli Yatırımcı/Tahsisli | I12: 15,000,000,000.00 | J12: =I12/3.0032 -> 4,994,672,349.49 | K12: 6,918,950,000.00 | L12: =I12-K12 -> 8,081,050,000.00
A13: 11 | B13: ICBC Turkey Bank A.Ş. | C13: Banka | D13: Borçlanma Aracı | E13: 2015-12-18 | F13: - | G13: 2016-01-27 | H13: Nitelikli Yatırımcı | I13: 350,000,000.00 | J13: =I13/3.0032 -> 116,542,354.82 | K13: 0.00 | L13: =I13-K13 -> 350,000,000.00
A14: 12 | B14: Tiryaki Agro Gıda Sanayi ve Ticaret A.Ş. | C14: Reel Sektör | D14: Borçlanma Aracı | E14: 2015-12-25 | F14: - | G14: 2016-01-27 | H14: Nitelikli Yatırımcı | I14: 250,000,000.00 | J14: =I14/3.0032 -> 83,244,539.16 | K14: 0.00 | L14: =I14-K14 -> 250,000,000.00
A15: 13 | B15: Ak Yatırım Menkul Değerler A.Ş. | C15: Finansal Kurum | D15: Borçlanma Aracı | E15: 2015-12-31 | F15: - | G15: 2016-01-27 | H15: Nitelikli Yatırımcı | I15: 500,000,000.00 | J15: =I15/3.0032 -> 166,489,078.32 | K15: 500,000,000.00 | L15: =I15-K15 -> 0.00
A16: 14 | B16: Koç Finansman A.Ş. | C16: Finansal Kurum | D16: Borçlanma Aracı | E16: 2016-01-07 | F16: - | G16: 2016-01-27 | H16: Tahsisli/Nitelikli Yatırımcı | I16: 522,000,000.00 | J16: =I16/3.0032 -> 173,814,597.76 | K16: 365,000,000.00 | L16: =I16-K16 -> 157,000,000.00
A17: 15 | B17: Türkiye Garanti Bankası A.Ş. | C17: Banka | D17: Borçlanma Aracı | E17: 2015-12-24 | F17: - | G17: 2016-02-04 | H17: Yurt Dışı | I17: - | J17: - | K17: - | L17: - | M17: 6,000,000,000.00 | N17: ABD Doları | O17: 125,464,871.00 | P17: =M17-O17 -> 5,874,535,129.00 | Q17: 168,627,500.00
A18: 16 | B18: Ak Finansal Kiralama A.Ş. | C18: Finansal Kurum | D18: Borçlanma Aracı | E18: 2015-12-24 | F18: - | G18: 2016-02-04 | H18: Yurt Dışı | I18: - | J18: - | K18: - | L18: - | M18: 500,000,000.00 | N18: ABD Doları | O18: 48,798,500.00 | P18: =M18-O18 -> 451,201,500.00 | Q18: 161,810,500.00
A19: 17 | B19: Nurol Yatırım Bankası A.Ş. | C19: Banka | D19: Borçlanma Aracı | E19: 2016-01-05 | F19: - | G19: 2016-02-04 | H19: Tahsisli/Nitelikli Yatırımcı | I19: 60,000,000.00 | J19: =I19/2.9096 -> 20,621,391.26 | K19: 60,000,000.00 | L19: =I19-K19 -> 0.00
A20: 18 | B20: Korteks Mensucat Sanayi ve Ticaret A.Ş. | C20: Reel Sektör | D20: Borçlanma Aracı | E20: 2016-01-11 | F20: - | G20: 2016-02-04 | H20: Nitelikli Yatırımcı | I20: 300,000,000.00 | J20: =I20/2.9096 -> 103,106,956.28 | K20: 180,000,000.00 | L20: =I20-K20 -> 120,000,000.00
A21: 19 | B21: Yapı Kredi Faktoring A.Ş. | C21: Finansal Kurum | D21: Borçlanma Aracı | E21: 2016-01-15 | F21: - | G21: 2016-02-04 | H21: Nitelikli Yatırımcı | I21: 869,000,000.00 | J21: =I21/2.9096 -> 298,666,483.37 | K21: 843,060,000.00 | L21: =I21-K21 -> 25,940,000.00
A22: 20 | B22: İş Gayrimenkul Yatırım Ortaklığı A.Ş. | C22: Reel Sektör | D22: Borçlanma Aracı | E22: 2015-12-29 | F22: - | G22: 2016-02-15 | H22: Nitelikli Yatırımcı | I22: 400,000,000.00 | J22: =I22/2.9494 -> 135,620,804.23 | K22: 400,000,000.00 | L22: =I22-K22 -> 0.00
A23: 21 | B23: TEB Finansman A.Ş. | C23: Finansal Kurum | D23: Borçlanma Aracı | E23: 2016-01-13 | F23: - | G23: 2016-02-15 | H23: Tahsisli/Nitelikli Yatırımcı | I23: 390,000,000.00 | J23: =I23/2.9494 -> 132,230,284.13 | K23: 136,360,000.00 | L23: =I23-K23 -> 253,640,000.00
A24: 22 | B24: Türkiye İş Bankası A.Ş. | C24: Banka | D24: Borçlanma Aracı | E24: 2016-01-14 | F24: - | G24: 2016-02-15 | H24: Yurt Dışı | I24: - | J24: - | K24: - | L24: - | M24: 5,000,000,000.00 | N24: ABD Doları | O24: 1,966,389,018.00 | P24: =M24-O24 -> 3,033,610,982.00 | Q24: 6,831,744,908.00
A25: 23 | B25: Türkiye Halk Bankası A.Ş. | C25: Banka | D25: Borçlanma Aracı | E25: 2016-01-18 | F25: - | G25: 2016-02-15 | H25: Halka Arz/Nitelikli Yatırımcı/Tahsisli | I25: 6,000,000,000.00 | J25: =I25/2.9494 -> 2,034,312,063.47 | K25: 4,650,000,000.00 | L25: =I25-K25 -> 1,350,000,000.00
A26: 24 | B26: Koç Holding A.Ş. | C26: Reel Sektör | D26: Borçlanma Aracı | E26: 2016-02-03 | F26: - | G26: 2016-02-15 | H26: Yurt Dışı | I26: - | J26: - | K26: - | L26: - | M26: 1,000,000,000.00 | N26: ABD Doları | O26: 750,000,000.00 | P26: =M26-O26 -> 250,000,000.00 | Q26: 2,644,125,000.00
A27: 25 | B27: KT Kira Sertifikaları Varlık Kiralama A.Ş. | C27: Finansal Kurum | D27: Kira Sertifikası | E27: 2016-02-03 | F27: - | G27: 2016-02-15 | H27: Tahsisli/Nitelikli Yatırımcı | I27: 150,000,000.00 | J27: =I27/2.9494 -> 50,857,801.59 | K27: 140,000,000.00 | L27: =I27-K27 -> 10,000,000.00
A28: 26 | B28: Yeditepe Faktoring A.Ş. | C28: Finansal Kurum | D28: Borçlanma Aracı | E28: 2016-02-03 | F28: - | G28: 2016-02-26 | H28: Nitelikli Yatırımcı | I28: 180,000,000.00 | J28: =I28/2.9345 -> 61,339,240.07 | K28: 39,500,000.00 | L28: =I28-K28 -> 140,500,000.00
A29: 27 | B29: Yapı Kredi Yatırım Menkul Değerler A.Ş. | C29: Finansal Kurum | D29: Borçlanma Aracı | E29: 2016-02-11 | F29: - | G29: 2016-02-26 | H29: Tahsisli/Nitelikli Yatırımcı | I29: 2,000,000,000.00 | J29: =I29/2.9345 -> 681,547,111.94 | K29: 1,999,930,000.00 | L29: =I29-K29 -> 70,000.00
A30: 28 | B30: The House Cafe Turizm ve Ticaret A.Ş. | C30: Reel Sektör | D30: Borçlanma Aracı | E30: 2015-12-07 | F30: - | G30: 2016-03-04 | H30: Tahsisli | I30: 12,000,000.00 | J30: =I30/2.9199 -> 4,109,729.79 | K30: 1,000,000.00 | L30: =I30-K30 -> 11,000,000.00
A31: 29 | B31: Egeli&Co Tarım Girişim Sermayesi Yatırım Ortaklığı A.Ş.*** | C31: Finansal Kurum | D31: Borçlanma Aracı | E31: 2015-12-10 | F31: - | G31: 2016-03-04 | H31: Tahsisli/Nitelikli Yatırımcı | I31: - | J31: - | K31: - | L31: -
A32: 30 | B32: Ayen Enerji A.Ş. | C32: Reel Sektör | D32: Borçlanma Aracı | E32: 2016-01-26 | F32: - | G32: 2016-03-04 | H32: Nitelikli Yatırımcı | I32: 101,000,000.00 | J32: =I32/2.9199 -> 34,590,225.69 | K32: 50,000,000.00 | L32: =I32-K32 -> 51,000,000.00
A33: 31 | B33: Huzur Faktoring A.Ş. | C33: Finansal Kurum | D33: Borçlanma Aracı | E33: 2016-02-08 | F33: - | G33: 2016-03-04 | H33: Nitelikli Yatırımcı | I33: 50,000,000.00 | J33: =I33/2.9199 -> 17,123,874.11 | K33: 34,500,000.00 | L33: =I33-K33 -> 15,500,000.00
A34: 32 | B34: Bankpozitif Kredi ve Kalkınma Bankası A.Ş. | C34: Banka | D34: Borçlanma Aracı | E34: 2016-02-11 | F34: - | G34: 2016-03-04 | H34: Tahsisli/Nitelikli Yatırımcı | I34: 205,000,000.00 | J34: =I34/2.9199 -> 70,207,883.83 | K34: 104,280,000.00 | L34: =I34-K34 -> 100,720,000.00
A35: 33 | B35: Akbank T.A.Ş. | C35: Banka | D35: İTMK | E35: 2015-11-06 | F35: - | G35: 2016-03-10 | H35: Yurt Dışı | I35: - | J35: - | K35: - | L35: - | M35: 1,000,000,000.00 | N35: Avro | O35: 0.00 | P35: =M35-O35 -> 1,000,000,000.00 | Q35: 0.00
A36: 34 | B36: Reysaş Gayrimenkul Yatırım Ortaklığı A.Ş. | C36: Reel Sektör | D36: Borçlanma Aracı | E36: 2015-12-29 | F36: - | G36: 2016-03-10 | H36: Nitelikli Yatırımcı | I36: 100,000,000.00 | J36: =I36/2.8927 -> 34,569,779.10 | K36: 0.00 | L36: =I36-K36 -> 100,000,000.00
A37: 35 | B37: Koçtaş Yapı Marketleri Ticaret A.Ş. | C37: Reel Sektör | D37: Borçlanma Aracı | E37: 2015-12-30 | F37: - | G37: 2016-03-10 | H37: Nitelikli Yatırımcı | I37: 150,000,000.00 | J37: =I37/2.8927 -> 51,854,668.65 | K37: 100,000,000.00 | L37: =I37-K37 -> 50,000,000.00
A38: 36 | B38: Fibabanka A.Ş. | C38: Banka | D38: Borçlanma Aracı | E38: 2016-02-25 | F38: - | G38: 2016-03-10 | H38: Yurt Dışı | I38: - | J38: - | K38: - | L38: - | M38: 250,000,000.00 | N38: ABD Doları | O38: 100,000,000.00 | P38: =M38-O38 -> 150,000,000.00 | Q38: 352,550,000.00
A39: 37 | B39: Türkiye Garanti Bankası A.Ş. | C39: Banka | D39: İTMK | E39: 2015-11-02 | F39: - | G39: 2016-03-23 | H39: Yurt Dışı | I39: - | J39: - | K39: - | L39: - | M39: 2,000,000,000.00 | N39: Avro | O39: 0.00 | P39: =M39-O39 -> 2,000,000,000.00 | Q39: 0.00
A40: 38 | B40: Gedik Yatırım Menkul Değerler A.Ş. | C40: Finansal Kurum | D40: Borçlanma Aracı | E40: 2016-02-04 | F40: - | G40: 2016-03-23 | H40: Halka Arz/Nitelikli Yatırımcı | I40: 200,000,000.00 | J40: =I40/2.8745 -> 69,577,317.79 | K40: 102,500,000.00 | L40: =I40-K40 -> 97,500,000.00
A41: 39 | B41: Nurol Yatırım Bankası A.Ş | C41: Banka | D41: Borçlanma Aracı | E41: 2016-02-16 | F41: - | G41: 2016-03-23 | H41: Tahsisli/Nitelikli Yatırımcı | I41: 160,000,000.00 | J41: =I41/2.8745 -> 55,661,854.24 | K41: 160,000,000.00 | L41: =I41-K41 -> 0.00
A42: 40 | B42: KT Kira Sertifikaları Varlık Kiralama A.Ş. | C42: Finansal Kurum | D42: Kira Sertifikası | E42: 2016-02-19 | F42: - | G42: 2016-03-23 | H42: Halka Arz/Nitelikli Yatırımcı/Tahsisli | I42: 1,850,000,000.00 | J42: =I42/2.8745 -> 643,590,189.60 | K42: 1,485,113,800.00 | L42: =I42-K42 -> 364,886,200.00
A43: 41 | B43: Yapı Kredi Yatırım Menkul Değerler A.Ş. | C43: Finansal Kurum | D43: Borçlanma Aracı | E43: 2016-02-23 | F43: - | G43: 2016-03-23 | H43: Nitelikli Yatırımcı | I43: 250,000,000.00 | J43: =I43/2.8745 -> 86,971,647.24 | K43: 151,810,310.00 | L43: =I43-K43 -> 98,189,690.00
A44: 42 | B44: Ziraat Katılım Varlık Kiralama A.Ş. | C44: Finansal Kurum | D44: Kira Sertifikası | E44: 2016-02-25 | F44: - | G44: 2016-03-23 | H44: Tahsisli/Nitelikli Yatırımcı | I44: 1,500,000,000.00 | J44: =I44/2.8745 -> 521,829,883.46 | K44: 300,000,000.00 | L44: =I44-K44 -> 1,200,000,000.00
A45: 43 | B45: Ak Yatırım Menkul Değerler A.Ş. | C45: Finansal Kurum | D45: Borçlanma Aracı | E45: 2016-03-03 | F45: - | G45: 2016-03-23 | H45: Nitelikli Yatırımcı | I45: 700,000,000.00 | J45: =I45/2.8745 -> 243,520,612.28 | K45: 700,000,000.00 | L45: =I45-K45 -> 0.00
A46: 44 | B46: Vera Varlık Yönetim A.Ş. | C46: Finansal Kurum | D46: Borçlanma Aracı | E46: 2016-02-18 | F46: - | G46: 2016-03-31 | H46: Nitelikli Yatırımcı | I46: 80,000,000.00 | J46: =I46/2.83 -> 28,268,551.24 | K46: 50,000,000.00 | L46: =I46-K46 -> 30,000,000.00
A47: 45 | B47: Koç Finansman A.Ş. | C47: Finansal Kurum | D47: Borçlanma Aracı | E47: 2016-02-26 | F47: - | G47: 2016-03-31 | H47: Tahsisli/Nitelikli Yatırımcı | I47: 195,000,000.00 | J47: =I47/2.83 -> 68,904,593.64 | K47: 0.00 | L47: =I47-K47 -> 195,000,000.00
A48: 46 | B48: Lider Faktoring A.Ş. | C48: Finansal Kurum | D48: Borçlanma Aracı | E48: 2016-03-01 | F48: - | G48: 2016-03-31 | H48: Tahsisli/Nitelikli Yatırımcı | I48: 200,000,000.00 | J48: =I48/2.83 -> 70,671,378.09 | K48: 200,000,000.00 | L48: =I48-K48 -> 0.00
A49: 47 | B49: Koç Fiat Kredi Finansman A.Ş. | C49: Finansal Kurum | D49: Borçlanma Aracı | E49: 2016-03-04 | F49: - | G49: 2016-04-14 | H49: Nitelikli Yatırımcı | I49: 290,000,000.00 | J49: =I49/2.8642 -> 101,249,912.72 | K49: 205,000,000.00 | L49: =I49-K49 -> 85,000,000.00
A50: 48 | B50: Yapı Kredi Finansal Kiralama A.O. | C50: Finansal Kurum | D50: Borçlanma Aracı | E50: 2016-03-10 | F50: - | G50: 2016-04-14 | H50: Nitelikli Yatırımcı | I50: 1,500,000,000.00 | J50: =I50/2.8642 -> 523,706,445.08 | K50: 690,600,000.00 | L50: =I50-K50 -> 809,400,000.00
A51: 49 | B51: Tat Gıda Sanayi A.Ş. | C51: Reel Sektör | D51: Borçlanma Aracı | E51: 2016-03-16 | F51: - | G51: 2016-04-14 | H51: Nitelikli Yatırımcı | I51: 150,000,000.00 | J51: =I51/2.8642 -> 52,370,644.51 | K51: 50,000,000.00 | L51: =I51-K51 -> 100,000,000.00
A52: 50 | B52: Turkish Bank A.Ş. | C52: Banka | D52: Borçlanma Aracı | E52: 2016-03-17 | F52: - | G52: 2016-04-14 | H52: Tahsisli/Nitelikli Yatırımcı | I52: 118,000,000.00 | J52: =I52/2.8642 -> 41,198,240.35 | K52: 77,000,000.00 | L52: =I52-K52 -> 41,000,000.00
A53: 51 | B53: Analiz Faktoring A.Ş. | C53: Finansal Kurum | D53: Borçlanma Aracı | E53: 2016-03-21 | F53: - | G53: 2016-04-14 | H53: Nitelikli Yatırımcı | I53: 25,000,000.00 | J53: =I53/2.8642 -> 8,728,440.75 | K53: 25,000,000.00 | L53: =I53-K53 -> 0.00
A54: 52 | B54: Ak Finansal Kiralama A.Ş. | C54: Finansal Kurum | D54: Borçlanma Aracı | E54: 2016-03-21 | F54: - | G54: 2016-04-14 | H54: Tahsisli/Nitelikli Yatırımcı | I54: 500,000,000.00 | J54: =I54/2.8642 -> 174,568,815.03 | K54: 500,000,000.00 | L54: =I54-K54 -> 0.00
A55: 53 | B55: Katmerciler Araç Üstü Ekipman Sanayi ve Ticaret A.Ş. | C55: Reel Sektör | D55: Borçlanma Aracı | E55: 2016-03-24 | F55: - | G55: 2016-04-14 | H55: Tahsisli/Nitelikli Yatırımcı | I55: 100,000,000.00 | J55: =I55/2.8642 -> 34,913,763.01 | K55: 48,000,000.00 | L55: =I55-K55 -> 52,000,000.00
A56: 54 | B56: İş Finansal Kiralama A.Ş. | C56: Finansal Kurum | D56: Borçlanma Aracı | E56: 2016-03-30 | F56: - | G56: 2016-04-14 | H56: Nitelikli Yatırımcı | I56: 1,500,000,000.00 | J56: =I56/2.8642 -> 523,706,445.08 | K56: 1,064,980,914.00 | L56: =I56-K56 -> 435,019,086.00
A57: 55 | B57: Orfin Finansman A.Ş. | C57: Finansal Kurum | D57: Borçlanma Aracı | E57: 2016-02-25 | F57: - | G57: 2016-04-21 | H57: Nitelikli Yatırımcı | I57: 405,000,000.00 | J57: =I57/2.826 -> 143,312,101.91 | K57: 175,000,000.00 | L57: =I57-K57 -> 230,000,000.00
A58: 56 | B58: YDA İnşaat Sanayi ve Ticaret A.Ş. | C58: Reel Sektör | D58: Borçlanma Aracı | E58: 2016-04-01 | F58: - | G58: 2016-04-21 | H58: Nitelikli Yatırımcı | I58: 500,000,000.00 | J58: =I58/2.826 -> 176,928,520.88 | K58: 250,000,000.00 | L58: =I58-K58 -> 250,000,000.00
A59: 57 | B59: Akdeniz İnşaat ve Eğitim Hizmetleri A.Ş. | C59: Reel Sektör | D59: Borçlanma Aracı | E59: 2016-02-19 | F59: - | G59: 2016-04-28 | H59: Tahsisli/Nitelikli Yatırımcı | I59: 500,000,000.00 | J59: =I59/2.82 -> 177,304,964.54 | K59: 0.00 | L59: =I59-K59 -> 500,000,000.00
A60: 58 | B60: Creditwest Faktoring A.Ş. | C60: Finansal Kurum | D60: Borçlanma Aracı | E60: 2016-03-18 | F60: - | G60: 2016-04-28 | H60: Nitelikli Yatırımcı | I60: 260,000,000.00 | J60: =I60/2.82 -> 92,198,581.56 | K60: 115,000,000.00 | L60: =I60-K60 -> 145,000,000.00
A61: 59 | B61: Final Varlık Yönetim A.Ş. | C61: Finansal Kurum | D61: Borçlanma Aracı | E61: 2016-04-11 | F61: - | G61: 2016-04-28 | H61: Tahsisli/Nitelikli Yatırımcı | I61: 48,000,000.00 | J61: =I61/2.82 -> 17,021,276.60 | K61: 48,000,000.00 | L61: =I61-K61 -> 0.00
A62: 60 | B62: ING Bank A.Ş. | C62: Banka | D62: Borçlanma Aracı | E62: 2016-02-22 | F62: - | G62: 2016-05-02 | H62: Halka Arz/Nitelikli Yatırımcı/Tahsisli | I62: 2,000,000,000.00 | J62: =I62/2.7978 -> 714,847,380.08 | K62: 250,000,000.00 | L62: =I62-K62 -> 1,750,000,000.00
A63: 61 | B63: Ereğli Tekstil Turizm Sanayi ve Ticaret A.Ş. | C63: Reel Sektör | D63: Borçlanma Aracı | E63: 2016-03-01 | F63: - | G63: 2016-05-02 | H63: Nitelikli Yatırımcı | I63: 200,000,000.00 | J63: =I63/2.7978 -> 71,484,738.01 | K63: 167,500,000.00 | L63: =I63-K63 -> 32,500,000.00
A64: 62 | B64: Kaleseramik Çanakkale Kalebodur Seramik Sanayi A.Ş. | C64: Reel Sektör | D64: Borçlanma Aracı | E64: 2016-03-03 | F64: - | G64: 2016-05-02 | H64: Nitelikli Yatırımcı | I64: 100,000,000.00 | J64: =I64/2.7978 -> 35,742,369.00 | K64: 50,000,000.00 | L64: =I64-K64 -> 50,000,000.00
A65: 63 | B65: Deva Holding A.Ş. | C65: Reel Sektör | D65: Borçlanma Aracı | E65: 2016-04-04 | F65: - | G65: 2016-05-02 | H65: Nitelikli Yatırımcı | I65: 150,000,000.00 | J65: =I65/2.7978 -> 53,613,553.51 | K65: 100,000,000.00 | L65: =I65-K65 -> 50,000,000.00
A66: 64 | B66: Türkiye Halk Bankası A.Ş. | C66: Banka | D66: Borçlanma Aracı | E66: 2016-04-11 | F66: - | G66: 2016-05-02 | H66: Yurt Dışı | I66: - | J66: - | K66: - | L66: - | M66: 2,500,000,000.00 | N66: ABD Doları | O66: 500,000,000.00 | P66: =M66-O66 -> 2,000,000,000.00 | Q66: 1,762,750,000.00
A67: 65 | B67: Bavet İlaç Sanayi ve Ticaret A.Ş. | C67: Reel Sektör | D67: Borçlanma Aracı | E67: 2016-01-22 | F67: - | G67: 2016-05-12 | H67: Tahsisli | I67: 25,000,000.00 | J67: =I67/2.9542 -> 8,462,527.93 | K67: 0.00 | L67: =I67-K67 -> 25,000,000.00
A68: 66 | B68: AE Arma Elektropanç Elektromekanik Sanayi Mühendislik Taahhüt ve Ticaret A.Ş. | C68: Reel Sektör | D68: Borçlanma Aracı | E68: 2016-03-25 | F68: - | G68: 2016-05-12 | H68: Tahsisli/Nitelikli Yatırımcı | I68: 105,000,000.00 | J68: =I68/2.9542 -> 35,542,617.29 | K68: 0.00 | L68: =I68-K68 -> 105,000,000.00
A69: 67 | B69: Yapı ve Kredi Bankası A.Ş. | C69: Banka | D69: Borçlanma Aracı | E69: 2016-04-04 | F69: - | G69: 2016-05-12 | H69: Yurt Dışı | I69: - | J69: - | K69: - | L69: - | M69: 6,000,000,000.00 | N69: ABD Doları | O69: 674,848,766.90 | P69: =M69-O69 -> 5,325,151,233.10 | Q69: 416,636,133.00
A70: 68 | B70: Varyap Varlıbaşlar Yapı Sanayi Turizm Yatırımları Ticaret ve Elektrik Üretim A.Ş | C70: Reel Sektör | D70: Borçlanma Aracı | E70: 2016-04-19 | F70: - | G70: 2016-05-23 | H70: Tahsisli/Nitelikli Yatırımcı | I70: 100,000,000.00 | J70: =I70/2.988 -> 33,467,202.14 | K70: 30,000,000.00 | L70: =I70-K70 -> 70,000,000.00
A71: 69 | B71: Finans Faktoring A.Ş. | C71: Finansal Kurum | D71: Borçlanma Aracı | E71: 2016-04-20 | F71: - | G71: 2016-05-23 | H71: Tahsisli/Nitelikli Yatırımcı | I71: 231,378,000.00 | J71: =I71/2.988 -> 77,435,742.97 | K71: 230,000,000.00 | L71: =I71-K71 -> 1,378,000.00
A72: 70 | B72: Ekim Turizm Ticaret ve Sanayi A.Ş. | C72: Reel Sektör | D72: Borçlanma Aracı | E72: 2016-05-02 | F72: - | G72: 2016-05-23 | H72: Nitelikli Yatırımcı | I72: 200,000,000.00 | J72: =I72/2.988 -> 66,934,404.28 | K72: 0.00 | L72: =I72-K72 -> 200,000,000.00
A73: 71 | B73: İş Faktoring A.Ş. | C73: Finansal Kurum | D73: Borçlanma Aracı | E73: 2016-05-03 | F73: - | G73: 2016-06-01 | H73: Tahsisli/Nitelikli Yatırımcı | I73: 440,000,000.00 | J73: =I73/2.9543 -> 148,935,450.02 | K73: 440,000,000.00 | L73: =I73-K73 -> 0.00
A74: 72 | B74: ALJ Finansman A.Ş. | C74: Finansal Kurum | D74: Borçlanma Aracı | E74: 2016-05-06 | F74: - | G74: 2016-06-01 | H74: Tahsisli/Nitelikli Yatırımcı | I74: 150,000,000.00 | J74: =I74/2.9543 -> 50,773,448.87 | K74: 45,000,000.00 | L74: =I74-K74 -> 105,000,000.00
A75: 73 | B75: Finansbank A.Ş. | C75: Banka | D75: Borçlanma Aracı | E75: 2016-05-10 | F75: - | G75: 2016-06-01 | H75: Yurt Dışı | I75: - | J75: - | K75: - | L75: - | M75: 2,000,000,000.00 | N75: ABD Doları | O75: 28,582,000.00 | P75: =M75-O75 -> 1,971,418,000.00 | Q75: 100,765,841.00
A76: 74 | B76: Deniz Finansal Kiralama A.Ş. | C76: Finansal Kurum | D76: Borçlanma Aracı | E76: 2016-05-12 | F76: - | G76: 2016-06-01 | H76: Nitelikli Yatırımcı | I76: 2,000,000,000.00 | J76: =I76/2.9543 -> 676,979,318.28 | K76: 1,719,500,000.00 | L76: =I76-K76 -> 280,500,000.00
A77: 75 | B77: Demirer Enerji Üretim Sanayi ve Ticaret A.Ş. | C77: Reel Sektör | D77: Borçlanma Aracı | E77: 2016-01-15 | F77: - | G77: 2016-06-13 | H77: Yurt Dışı | I77: - | J77: - | K77: - | L77: - | M77: 10,000,000.00 | N77: Avro | O77: 2,145,000.00 | P77: =M77-O77 -> 7,855,000.00 | Q77: 0.00
A78: 76 | B78: Demirer Enerji Üretim Sanayi ve Ticaret A.Ş. | C78: Reel Sektör | D78: Borçlanma Aracı | E78: 2016-01-15 | F78: - | G78: 2016-06-13 | H78: Tahsisli/Nitelikli Yatırımcı | I78: 25,000,000.00 | J78: =I78/2.9271 -> 8,540,876.64 | K78: 0.00 | L78: =I78-K78 -> 25,000,000.00
A79: 77 | B79: Şekerbank T.A.Ş. | C79: Banka | D79: Borçlanma Aracı | E79: 2016-04-26 | F79: - | G79: 2016-06-13 | H79: Yurt Dışı | I79: - | J79: - | K79: - | L79: - | M79: 300,000,000.00 | N79: ABD Doları | O79: 0.00 | P79: =M79-O79 -> 300,000,000.00 | Q79: 0.00
A80: 78 | B80: Aktif Bank Sukuk Varlık Kiralama A.Ş. | C80: Finansal Kurum | D80: Kira Sertifikası | E80: 2016-05-02 | F80: - | G80: 2016-06-13 | H80: Tahsisli/Nitelikli Yatırımcı | I80: 100,000,000.00 | J80: =I80/2.9271 -> 34,163,506.54 | K80: 75,000,000.00 | L80: =I80-K80 -> 25,000,000.00
A81: 79 | B81: Fibabanka A.Ş. | C81: Banka | D81: Borçlanma Aracı | E81: 2016-05-09 | F81: - | G81: 2016-06-13 | H81: Tahsisli/Nitelikli Yatırımcı | I81: 2,000,000,000.00 | J81: =I81/2.9271 -> 683,270,130.85 | K81: 1,420,240,000.00 | L81: =I81-K81 -> 579,760,000.00
A82: 80 | B82: Ak Yatırım Menkul Değerler A.Ş. | C82: Finansal Kurum | D82: Borçlanma Aracı | E82: 2016-05-18 | F82: - | G82: 2016-06-13 | H82: Nitelikli Yatırımcı | I82: 950,000,000.00 | J82: =I82/2.9271 -> 324,553,312.15 | K82: 862,385,000.00 | L82: =I82-K82 -> 87,615,000.00
A83: 81 | B83: Zorlu Enerji Elektrik Üretim A.Ş | C83: Reel Sektör | D83: Borçlanma Aracı | E83: 2016-05-12 | F83: - | G83: 2016-06-24 | H83: Nitelikli Yatırımcı | I83: 106,345,000.00 | J83: =I83/2.9318 -> 36,272,938.13 | K83: 106,000,000.00 | L83: =I83-K83 -> 345,000.00
A84: 82 | B84: Halk Yatırım Menkul Değerler A.Ş. | C84: Finansal Kurum | D84: Borçlanma Aracı | E84: 2016-05-23 | F84: - | G84: 2016-06-24 | H84: Nitelikli Yatırımcı | I84: 280,000,000.00 | J84: =I84/2.9318 -> 95,504,468.24 | K84: 280,000,000.00 | L84: =I84-K84 -> 0.00
A85: 83 | B85: İş Yatırım Menkul Değerler A.Ş. | C85: Finansal Kurum | D85: Borçlanma Aracı | E85: 2016-05-23 | F85: - | G85: 2016-06-24 | H85: Tahsisli/Nitelikli Yatırımcı | I85: 2,500,000,000.00 | J85: =I85/2.9318 -> 852,718,466.47 | K85: 2,021,530,000.00 | L85: =I85-K85 -> 478,470,000.00
A86: 84 | B86: Destek Faktoring A.Ş. | C86: Finansal Kurum | D86: Borçlanma Aracı | E86: 2016-05-23 | F86: - | G86: 2016-06-24 | H86: Nitelikli Yatırımcı | I86: 300,000,000.00 | J86: =I86/2.9318 -> 102,326,215.98 | K86: 127,800,000.00 | L86: =I86-K86 -> 172,200,000.00
A87: 85 | B87: Garanti Faktoring A.Ş. | C87: Finansal Kurum | D87: Borçlanma Aracı | E87: 2016-06-01 | F87: - | G87: 2016-06-24 | H87: Nitelikli Yatırımcı | I87: 1,000,000,000.00 | J87: =I87/2.9318 -> 341,087,386.59 | K87: 520,790,000.00 | L87: =I87-K87 -> 479,210,000.00
A88: 86 | B88: Otokoç Otomotiv Ticaret ve Sanayi A.Ş. | C88: Reel Sektör | D88: Borçlanma Aracı | E88: 2016-06-08 | F88: - | G88: 2016-06-24 | H88: Tahsisli/Nitelikli Yatırımcı | I88: 150,000,000.00 | J88: =I88/2.9318 -> 51,163,107.99 | K88: 150,000,000.00 | L88: =I88-K88 -> 0.00
A89: 87 | B89: Teknik Yapı Teknik Yapılar Sanayi ve Ticaret A.Ş. | C89: Reel Sektör | D89: Borçlanma Aracı | E89: 2016-03-24 | F89: - | G89: 2016-06-30 | H89: Nitelikli Yatırımcı | I89: 250,000,000.00 | J89: =I89/2.89 -> 86,505,190.31 | K89: 0.00 | L89: =I89-K89 -> 250,000,000.00
A90: 88 | B90: Emay İnşaat Taahhüt Sanayi ve Ticaret A.Ş. | C90: Reel Sektör | D90: Borçlanma Aracı | E90: 2016-04-28 | F90: - | G90: 2016-06-30 | H90: Nitelikli Yatırımcı | I90: 500,000,000.00 | J90: =I90/2.89 -> 173,010,380.62 | K90: 0.00 | L90: =I90-K90 -> 500,000,000.00
A91: 89 | B91: Tera Menkul Değerler A.Ş. | C91: Finansal Kurum | D91: Borçlanma Aracı | E91: 2016-05-17 | F91: - | G91: 2016-06-30 | H91: Tahsisli/Nitelikli Yatırımcı | I91: 95,000,000.00 | J91: =I91/2.89 -> 32,871,972.32 | K91: 50,000,000.00 | L91: =I91-K91 -> 45,000,000.00
A92: 90 | B92: Aktif Yatırım Bankası A.Ş. | C92: Banka | D92: Borçlanma Aracı | E92: 2016-06-08 | F92: - | G92: 2016-06-30 | H92: Tahsisli/Nitelikli Yatırımcı | I92: 500,000,000.00 | J92: =I92/2.89 -> 173,010,380.62 | K92: 500,000,000.00 | L92: =I92-K92 -> 0.00
A93: 91 | B93: Nurol Yatırım Bankası A.Ş. | C93: Banka | D93: Borçlanma Aracı | E93: 2016-06-09 | F93: - | G93: 2016-06-30 | H93: Nitelikli Yatırımcı | I93: 385,690,250.00 | J93: =I93/2.89 -> 133,456,833.91 | K93: 385,500,000.00 | L93: =I93-K93 -> 190,250.00
A94: 92 | B94: Nobel İlaç Sanayi ve Ticaret A.Ş. | C94: Reel Sektör | D94: Borçlanma Aracı | E94: 2016-04-21 | F94: - | G94: 2016-07-15 | H94: Nitelikli Yatırımcı | I94: 100,000,000.00 | J94: =I94/2.8886 -> 34,618,846.50 | K94: 50,000,000.00 | L94: =I94-K94 -> 50,000,000.00
A95: 93 | B95: Çalık Enerji Sanayi ve Ticaret A.Ş. | C95: Reel Sektör | D95: Borçlanma Aracı | E95: 2016-06-10 | F95: - | G95: 2016-07-15 | H95: Tahsisli/Nitelikli Yatırımcı | I95: 250,000,000.00 | J95: =I95/2.8886 -> 86,547,116.25 | K95: 0.00 | L95: =I95-K95 -> 250,000,000.00
A96: 94 | B96: Halk Finansal Kiralama A.Ş. | C96: Finansal Kurum | D96: Borçlanma Aracı | E96: 2016-06-21 | F96: - | G96: 2016-07-15 | H96: Nitelikli Yatırımcı | I96: 400,000,000.00 | J96: =I96/2.8886 -> 138,475,386.00 | K96: 125,000,000.00 | L96: =I96-K96 -> 275,000,000.00
A97: 95 | B97: SGT Sanayi ve Ticari Ürünler Dış Ticaret A.Ş. | C97: Reel Sektör | D97: Borçlanma Aracı | E97: 2016-06-27 | F97: - | G97: 2016-07-15 | H97: Tahsisli | I97: 700,000.00 | J97: =I97/2.8886 -> 242,331.93 | K97: 700,000.00 | L97: =I97-K97 -> 0.00
A98: 96 | B98: Vakıf Faktoring A.Ş. | C98: Finansal Kurum | D98: Borçlanma Aracı | E98: 2016-05-03 | F98: - | G98: 2016-07-26 | H98: Tahsisli/Nitelikli Yatırımcı | I98: 202,964,000.00 | J98: =I98/3.0407 -> 66,749,103.82 | K98: 202,964,000.00 | L98: =I98-K98 -> 0.00
A99: 97 | B99: Başkent Elektrik Dağıtım A.Ş. | C99: Reel Sektör | D99: Borçlanma Aracı | E99: 2016-06-08 | F99: - | G99: 2016-07-26 | H99: Nitelikli Yatırımcı | I99: 1,000,000,000.00 | J99: =I99/3.0407 -> 328,871,641.40 | K99: 350,000,000.00 | L99: =I99-K99 -> 650,000,000.00
A100: 98 | B100: Türkiye Vakıflar Bankası T.A.O. | C100: Banka | D100: Borçlanma Aracı | E100: 2016-06-10 | F100: - | G100: 2016-07-26 | H100: Halka Arz/Nitelikli Yatırımcı/Tahsisli | I100: 16,000,000,000.00 | J100: =I100/3.0407 -> 5,261,946,262.37 | K100: 4,730,127,513.00 | L100: =I100-K100 -> 11,269,872,487.00
A101: 99 | B101: Atılım Faktoring A.Ş. | C101: Finansal Kurum | D101: Borçlanma Aracı | E101: 2016-06-13 | F101: - | G101: 2016-07-26 | H101: Nitelikli Yatırımcı | I101: 130,000,000.00 | J101: =I101/3.0407 -> 42,753,313.38 | K101: 27,000,000.00 | L101: =I101-K101 -> 103,000,000.00
A102: 100 | B102: Türk Ekonomi Bankası A.Ş. | C102: Banka | D102: Borçlanma Aracı | E102: 2016-05-20 | F102: - | G102: 2016-10-04 | H102: Yurt Dışı | I102: - | J102: - | K102: - | L102: - | M102: 600,000,000.00 | N102: ABD Doları | O102: 0.00 | P102: =M102-O102 -> 600,000,000.00 | Q102: 0.00
A103: 101 | B103: Türkiye Vakıflar Bankası T.A.O. | C103: Banka | D103: İTMK | E103: 2016-05-23 | F103: - | G103: 2016-10-04 | H103: Yurt Dışı | I103: - | J103: - | K103: - | L103: - | M103: 2,000,000,000.00 | N103: Avro | O103: 0.00 | P103: =M103-O103 -> 2,000,000,000.00 | Q103: 0.00
A104: 102 | B104: Pasha Yatırım Bankası A.Ş. | C104: Banka | D104: Borçlanma Aracı | E104: 2016-06-13 | F104: - | G104: 2016-10-04 | H104: Nitelikli Yatırımcı | I104: 150,000,000.00 | J104: =I104/3.0348 -> 49,426,650.85 | K104: 37,500,000.00 | L104: =I104-K104 -> 112,500,000.00
A105: 103 | B105: Çelik Motor Ticaret A.Ş. | C105: Reel Sektör | D105: Borçlanma Aracı | E105: 2016-06-16 | F105: - | G105: 2016-10-04 | H105: Nitelikli Yatırımcı | I105: 400,000,000.00 | J105: =I105/3.0348 -> 131,804,402.27 | K105: 85,000,000.00 | L105: =I105-K105 -> 315,000,000.00
A106: 104 | B106: Denizbank A.Ş. | C106: Banka | D106: Borçlanma Aracı | E106: 2016-06-22 | F106: - | G106: 2016-10-04 | H106: Halka Arz/Nitelikli Yatırımcı/Tahsisli | I106: 7,000,000,000.00 | J106: =I106/3.0348 -> 2,306,577,039.67 | K106: 735,000,000.00 | L106: =I106-K106 -> 6,265,000,000.00
A107: 105 | B107: Türkiye Garanti Bankası A.Ş. | C107: Banka | D107: Borçlanma Aracı | E107: 2016-06-23 | F107: - | G107: 2016-10-04 | H107: Nitelikli Yatırımcı | I107: 6,000,000,000.00 | J107: =I107/3.0348 -> 1,977,066,034.01 | K107: 1,518,504,039.00 | L107: =I107-K107 -> 4,481,495,961.00
A108: 106 | B108: Garanti Finansal Kiralama A.Ş. | C108: Finansal Kurum | D108: Borçlanma Aracı | E108: 2016-06-30 | F108: - | G108: 2016-10-04 | H108: Nitelikli Yatırımcı | I108: 2,500,000,000.00 | J108: =I108/3.0348 -> 823,777,514.17 | K108: 507,680,000.00 | L108: =I108-K108 -> 1,992,320,000.00
A109: 107 | B109: Akdeniz Faktoring A.Ş. | C109: Finansal Kurum | D109: Borçlanma Aracı | E109: 2016-07-14 | F109: - | G109: 2016-10-04 | H109: Nitelikli Yatırımcı | I109: 160,000,000.00 | J109: =I109/3.0348 -> 52,721,760.91 | K109: 70,000,000.00 | L109: =I109-K109 -> 90,000,000.00
A110: 108 | B110: Deniz Faktoring A.Ş. | C110: Finansal Kurum | D110: Borçlanma Aracı | E110: 2016-07-15 | F110: - | G110: 2016-10-04 | H110: Nitelikli Yatırımcı | I110: 367,000,000.00 | J110: =I110/3.0348 -> 120,930,539.08 | K110: 145,000,000.00 | L110: =I110-K110 -> 222,000,000.00
A111: 109 | B111: Aktif Yatırım Bankası A.Ş. (3) No'lu Varlık Finansmanı Fonu | C111: Fonlar | D111: VDMK | E111: 2016-07-15 | F111: - | G111: 2016-10-04 | H111: Nitelikli Yatırımcı | I111: 75,000,000.00 | J111: =I111/3.0348 -> 24,713,325.43 | K111: 75,000,000.00 | L111: =I111-K111 -> 0.00
A112: 110 | B112: Yapı Kredi Yatırım Menkul Değerler A.Ş. | C112: Finansal Kurum | D112: Borçlanma Aracı | E112: 2016-07-21 | F112: - | G112: 2016-10-04 | H112: Tahsisli/Nitelikli Yatırımcı | I112: 1,500,000,000.00 | J112: =I112/3.0348 -> 494,266,508.50 | K112: 885,790,000.00 | L112: =I112-K112 -> 614,210,000.00
A113: 111 | B113: Finans Finansal Kiralama A.Ş. | C113: Finansal Kurum | D113: Borçlanma Aracı | E113: 2016-07-25 | F113: - | G113: 2016-10-04 | H113: Tahsisli/Nitelikli Yatırımcı | I113: 1,500,000,000.00 | J113: =I113/3.0348 -> 494,266,508.50 | K113: 178,760,800.00 | L113: =I113-K113 -> 1,321,239,200.00
A114: 112 | B114: Ünlü Menkul Değerler A.Ş. | C114: Finansal Kurum | D114: Borçlanma Aracı | E114: 2016-08-02 | F114: - | G114: 2016-10-04 | H114: Nitelikli Yatırımcı | I114: 150,000,000.00 | J114: =I114/3.0348 -> 49,426,650.85 | K114: 60,599,861.00 | L114: =I114-K114 -> 89,400,139.00
A115: 113 | B115: KT Kira Sertifikaları Varlık Kirlama A.Ş. | C115: Finansal Kurum | D115: Kira Sertifikası | E115: 2016-08-02 | F115: - | G115: 2016-10-04 | H115: Yurt Dışı | I115: - | J115: - | K115: - | L115: - | M115: 1,200,000,000.00 | N115: Malezya Ringiti | O115: 0.00 | P115: =M115-O115 -> 1,200,000,000.00 | Q115: 0.00
A116: 114 | B116: Türkiye İhracat Kredi Bankası A.Ş. | C116: Banka | D116: Borçlanma Aracı | E116: 2016-08-05 | F116: - | G116: 2016-10-04 | H116: Yurt Dışı | I116: - | J116: - | K116: - | L116: - | M116: 1,000,000,000.00 | N116: ABD Doları | O116: 500,000,000.00 | P116: =M116-O116 -> 500,000,000.00 | Q116: 1,762,750,000.00
A117: 115 | B117: KT Kira Sertifikaları Varlık Kirlama A.Ş. | C117: Finansal Kurum | D117: Kira Sertifikası | E117: 2016-08-09 | F117: - | G117: 2016-10-04 | H117: Yurt Dışı | I117: - | J117: - | K117: - | L117: - | M117: 500,000,000.00 | N117: ABD Doları | O117: 500,000,000.00 | P117: =M117-O117 -> 0.00 | Q117: 0.00
A118: 116 | B118: Gedik Yatırım Holding A.Ş. | C118: Reel Sektör | D118: Borçlanma Aracı | E118: 2016-08-15 | F118: - | G118: 2016-10-04 | H118: Nitelikli Yatırımcı | I118: 10,000,000.00 | J118: =I118/3.0348 -> 3,295,110.06 | K118: 10,000,000.00 | L118: =I118-K118 -> 0.00
A119: 117 | B119: Ak Finansal Kiralama A.Ş. | C119: Finansal Kurum | D119: Borçlanma Aracı | E119: 2016-09-02 | F119: - | G119: 2016-10-04 | H119: Tahsisli/Nitelikli Yatırımcı | I119: 1,400,000,000.00 | J119: =I119/3.0348 -> 461,315,407.93 | K119: 345,000,000.00 | L119: =I119-K119 -> 1,055,000,000.00
A120: 118 | B120: Orfin Finansman A.Ş. | C120: Finansal Kurum | D120: Borçlanma Aracı | E120: 2016-09-05 | F120: - | G120: 2016-10-04 | H120: Tahsisli/Nitelikli Yatırımcı | I120: 100,000,000.00 | J120: =I120/3.0348 -> 32,951,100.57 | K120: 100,000,000.00 | L120: =I120-K120 -> 0.00
A121: 119 | B121: Mega Varlık Yönetim A.Ş. | C121: Finansal Kurum | D121: Borçlanma Aracı | E121: 2016-06-13 | F121: - | G121: 2016-10-07 | H121: Nitelikli Yatırımcı | I121: 30,000,000.00 | J121: =I121/3.056 -> 9,816,753.93 | K121: 9,000,000.00 | L121: =I121-K121 -> 21,000,000.00
A122: 120 | B122: Ata Yatırım Menkul Kıymetler A.Ş. | C122: Finansal Kurum | D122: Borçlanma Aracı | E122: 2016-06-16 | F122: - | G122: 2016-10-07 | H122: Tahsisli/Nitelikli Yatırımcı | I122: 30,000,000.00 | J122: =I122/3.056 -> 9,816,753.93 | K122: 0.00 | L122: =I122-K122 -> 30,000,000.00
A123: 121 | B123: Gürteks İplik Sanayi ve Ticaret A.Ş. | C123: Reel Sektör | D123: Borçlanma Aracı | E123: 2016-06-17 | F123: - | G123: 2016-10-07 | H123: Tahsisli/Nitelikli Yatırımcı | I123: 100,000,000.00 | J123: =I123/3.056 -> 32,722,513.09 | K123: 0.00 | L123: =I123-K123 -> 100,000,000.00
A124: 122 | B124: İş Yatırım Menkul Değerler A.Ş. | C124: Finansal Kurum | D124: Varant | E124: 2016-06-20 | F124: - | G124: 2016-10-07 | H124: Halka Arz | I124: 80,000,000.00 | J124: =I124/3.056 -> 26,178,010.47 | K124: 26,715,000.00 | L124: =I124-K124 -> 53,285,000.00
A125: 123 | B125: Kent Faktoring A.Ş. | C125: Finansal Kurum | D125: Borçlanma Aracı | E125: 2016-06-23 | F125: - | G125: 2016-10-07 | H125: Nitelikli Yatırımcı | I125: 20,000,000.00 | J125: =I125/3.056 -> 6,544,502.62 | K125: 0.00 | L125: =I125-K125 -> 20,000,000.00
A126: 124 | B126: Zorlu Faktoring A.Ş. | C126: Finansal Kurum | D126: Borçlanma Aracı | E126: 2016-06-30 | F126: - | G126: 2016-10-07 | H126: Nitelikli Yatırımcı | I126: 140,000,000.00 | J126: =I126/3.056 -> 45,811,518.32 | K126: 50,000,000.00 | L126: =I126-K126 -> 90,000,000.00
A127: 125 | B127: Çağdaş Faktoring A.Ş. | C127: Finansal Kurum | D127: Borçlanma Aracı | E127: 2016-07-15 | F127: - | G127: 2016-10-07 | H127: Nitelikli Yatırımcı | I127: 75,000,000.00 | J127: =I127/3.056 -> 24,541,884.82 | K127: 50,000,000.00 | L127: =I127-K127 -> 25,000,000.00
A128: 126 | B128: Boyner Perakende ve Tekstil Yatırımları A.Ş. | C128: Reel Sektör | D128: Borçlanma Aracı | E128: 2016-08-29 | F128: - | G128: 2016-10-07 | H128: Tahsisli/Nitelikli Yatırımcı | I128: 300,000,000.00 | J128: =I128/3.056 -> 98,167,539.27 | K128: 0.00 | L128: =I128-K128 -> 300,000,000.00
A129: 127 | B129: Kardemir Karabür Demir Çelik Sanayi ve Ticaret A.Ş. | C129: Reel Sektör | D129: Borçlanma Aracı | E129: 2016-09-01 | F129: - | G129: 2016-10-07 | H129: Nitelikli Yatırımcı | I129: 400,000,000.00 | J129: =I129/3.056 -> 130,890,052.36 | K129: 0.00 | L129: =I129-K129 -> 400,000,000.00
A130: 128 | B130: Yapı ve Kredi Bankası A.Ş. | C130: Banka | D130: İTMK | E130: 2015-10-14 | F130: - | G130: 2016-10-14 | H130: Yurt Dışı | I130: - | J130: - | K130: - | L130: - | M130: 1,000,000,000.00 | N130: Avro | O130: 0.00 | P130: =M130-O130 -> 1,000,000,000.00 | Q130: 0.00
A131: 129 | B131: Bimeks Bilgi İşlem ve Dış Ticaret A.Ş. | C131: Reel Sektör | D131: Borçlanma Aracı | E131: 2016-08-23 | F131: - | G131: 2016-10-14 | H131: Nitelikli Yatırımcı | I131: 55,000,000.00 | J131: =I131/3.0922 -> 17,786,689.09 | K131: 0.00 | L131: =I131-K131 -> 55,000,000.00
A132: 130 | B132: Türk Ekonomi Bankası A.Ş. | C132: Banka | D132: Borçlanma Aracı | E132: 2016-06-13 | F132: - | G132: 2016-10-25 | H132: Halka Arz/Nitelikli Yatırımcı/Tahsisli | I132: 3,000,000,000.00 | J132: =I132/3.0835 -> 972,920,382.68 | K132: 622,660,000.00 | L132: =I132-K132 -> 2,377,340,000.00
A133: 131 | B133: Global Menkul Değerler A.Ş. | C133: Finansal Kurum | D133: Borçlanma Aracı | E133: 2016-07-27 | F133: - | G133: 2016-10-25 | H133: Tahsisli/Nitelikli Yatırımcı | I133: 100,000,000.00 | J133: =I133/3.0835 -> 32,430,679.42 | K133: 0.00 | L133: =I133-K133 -> 100,000,000.00
A134: 132 | B134: Net Holding A.Ş. | C134: Reel Sektör | D134: Borçlanma Aracı | E134: 2016-08-05 | F134: - | G134: 2016-10-25 | H134: Tahsisli/Nitelikli Yatırımcı | I134: 600,000,000.00 | J134: =I134/3.0835 -> 194,584,076.54 | K134: 100,000,000.00 | L134: =I134-K134 -> 500,000,000.00
A135: 133 | B135: Banvit Bandırma Vitaminli Yem Sanayii A.Ş. | C135: Reel Sektör | D135: Borçlanma Aracı | E135: 2016-08-15 | F135: - | G135: 2016-10-25 | H135: Nitelikli Yatırımcı | I135: 100,000,000.00 | J135: =I135/3.0835 -> 32,430,679.42 | K135: 0.00 | L135: =I135-K135 -> 100,000,000.00
A136: 134 | B136: Ak Yatırım Menkul Değerler A.Ş. | C136: Finansal Kurum | D136: Borçlanma Aracı | E136: 2016-08-26 | F136: - | G136: 2016-10-25 | H136: Nitelikli Yatırımcı | I136: 300,000,000.00 | J136: =I136/3.0835 -> 97,292,038.27 | K136: 300,000,000.00 | L136: =I136-K136 -> 0.00
A137: 135 | B137: Halk Yatırım Menkul Değerler A.Ş. | C137: Finansal Kurum | D137: Borçlanma Aracı | E137: 2016-08-31 | F137: - | G137: 2016-10-25 | H137: Nitelikli Yatırımcı | I137: 290,000,000.00 | J137: =I137/3.0835 -> 94,048,970.33 | K137: 275,650,000.00 | L137: =I137-K137 -> 14,350,000.00
A138: 136 | B138: Akbank T.A.Ş. | C138: Banka | D138: Borçlanma Aracı | E138: 2016-09-05 | F138: - | G138: 2016-10-25 | H138: Halka Arz/Nitelikli Yatırımcı/Tahsisli | I138: 10,000,000,000.00 | J138: =I138/3.0835 -> 3,243,067,942.27 | K138: 50,000,000.00 | L138: =I138-K138 -> 9,950,000,000.00
A139: 137 | B139: Arzum Elektrikli Ev Aletleri Sanayi ve Ticaret A.Ş. | C139: Reel Sektör | D139: Borçlanma Aracı | E139: 2016-09-06 | F139: - | G139: 2016-10-25 | H139: Tahsisli/Nitelikli Yatırımcı | I139: 75,000,000.00 | J139: =I139/3.0835 -> 24,323,009.57 | K139: 0.00 | L139: =I139-K139 -> 75,000,000.00
A140: 138 | B140: Türkiye İş Bankası A.Ş. | C140: Banka | D140: Borçlanma Aracı | E140: 2016-09-07 | F140: - | G140: 2016-10-25 | H140: Halka Arz/Nitelikli Yatırımcı/Tahsisli | I140: 20,000,000,000.00 | J140: =I140/3.0835 -> 6,486,135,884.55 | K140: 1,615,575,771.00 | L140: =I140-K140 -> 18,384,424,229.00
A141: 139 | B141: A1 Kapital Yatırım Menkul Değerler A.Ş. | C141: Finansal Kurum | D141: Borçlanma Aracı | E141: 2016-09-08 | F141: - | G141: 2016-10-25 | H141: Nitelikli Yatırımcı | I141: 30,000,000.00 | J141: =I141/3.0835 -> 9,729,203.83 | K141: 0.00 | L141: =I141-K141 -> 30,000,000.00
A142: 140 | B142: Global Yatırım Holding A.Ş. | C142: Reel Sektör | D142: Borçlanma Aracı | E142: 2016-09-08 | F142: - | G142: 2016-10-25 | H142: Nitelikli Yatırımcı | I142: 100,000,000.00 | J142: =I142/3.0835 -> 32,430,679.42 | K142: 85,000,000.00 | L142: =I142-K142 -> 15,000,000.00
A143: 141 | B143: Turk Asset Varlık Yönetim A.Ş. | C143: Finansal Kurum | D143: Borçlanma Aracı | E143: 2016-09-19 | F143: - | G143: 2016-10-25 | H143: Nitelikli Yatırımcı | I143: 150,000,000.00 | J143: =I143/3.0835 -> 48,646,019.13 | K143: 0.00 | L143: =I143-K143 -> 150,000,000.00
A144: 142 | B144: Oyak Yatırım Menkul Değerler A.Ş. | C144: Finansal Kurum | D144: Borçlanma Aracı | E144: 2016-10-03 | F144: - | G144: 2016-10-25 | H144: Nitelikli Yatırımcı | I144: 150,000,000.00 | J144: =I144/3.0835 -> 48,646,019.13 | K144: 40,000,000.00 | L144: =I144-K144 -> 110,000,000.00
A145: 143 | B145: Aktif Yatırım Bankası A.Ş. | C145: Banka | D145: Borçlanma Aracı | E145: 2016-10-11 | F145: - | G145: 2016-10-25 | H145: Tahsisli/Nitelikli Yatırımcı | I145: 1,000,000,000.00 | J145: =I145/3.0835 -> 324,306,794.23 | K145: 430,000,000.00 | L145: =I145-K145 -> 570,000,000.00
A146: 144 | B146: Analiz Faktoring A.Ş. | C146: Finansal Kurum | D146: Borçlanma Aracı | E146: 2016-10-03 | F146: - | G146: 2016-11-03 | H146: Nitelikli Yatırımcı | I146: 34,000,000.00 | J146: =I146/3.1181 -> 10,904,076.20 | K146: 13,000,000.00 | L146: =I146-K146 -> 21,000,000.00
A147: 145 | B147: Sarten Ambalaj Sanayi ve Ticaret A.Ş. | C147: Reel Sektör | D147: Borçlanma Aracı | E147: 2016-10-03 | F147: - | G147: 2016-11-03 | H147: Nitelikli Yatırımcı | I147: 100,000,000.00 | J147: =I147/3.1181 -> 32,070,812.35 | K147: 50,000,000.00 | L147: =I147-K147 -> 50,000,000.00
A148: 146 | B148: Lider Faktoring A.Ş. | C148: Finansal Kurum | D148: Borçlanma Aracı | E148: 2016-10-06 | F148: - | G148: 2016-11-03 | H148: Tahsisli/Nitelikli Yatırımcı | I148: 225,000,000.00 | J148: =I148/3.1181 -> 72,159,327.80 | K148: 32,000,000.00 | L148: =I148-K148 -> 193,000,000.00
A149: 147 | B149: Finans Faktoring A.Ş. | C149: Finansal Kurum | D149: Borçlanma Aracı | E149: 2016-10-07 | F149: - | G149: 2016-11-03 | H149: Tahsisli/Nitelikli Yatırımcı | I149: 230,000,000.00 | J149: =I149/3.1181 -> 73,762,868.41 | K149: 170,000,000.00 | L149: =I149-K149 -> 60,000,000.00
A150: 148 | B150: Derimod Konfeksiyon Ayakkabı Deri Sanayi ve Ticaret A.Ş. | C150: Reel Sektör | D150: Borçlanma Aracı | E150: 2016-10-10 | F150: - | G150: 2016-11-03 | H150: Nitelikli Yatırımcı | I150: 35,000,000.00 | J150: =I150/3.1181 -> 11,224,784.32 | K150: 0.00 | L150: =I150-K150 -> 35,000,000.00
A151: 149 | B151: Odaş Elektrik Üretim Sanayi Ticaret A.Ş. | C151: Reel Sektör | D151: Borçlanma Aracı | E151: 2016-09-06 | F151: - | G151: 2016-11-11 | H151: Nitelikli Yatırımcı | I151: 100,000,000.00 | J151: =I151/3.2646 -> 30,631,624.09 | K151: 0.00 | L151: =I151-K151 -> 100,000,000.00
A152: 150 | B152: Yapı ve Kredi Bankası A.Ş. | C152: Banka | D152: Borçlanma Aracı | E152: 2016-09-19 | F152: - | G152: 2016-11-11 | H152: Halka Arz/Nitelikli Yatırımcı/Tahsisli | I152: 10,000,000,000.00 | J152: =I152/3.2646 -> 3,063,162,408.87 | K152: 0.00 | L152: =I152-K152 -> 10,000,000,000.00
A153: 151 | B153: Şeker Finansal Kiralama A.Ş. | C153: Finansal Kurum | D153: Borçlanma Aracı | E153: 2016-09-23 | F153: - | G153: 2016-11-11 | H153: Halka Arz/Nitelikli Yatırımcı/Tahsisli | I153: 150,000,000.00 | J153: =I153/3.2646 -> 45,947,436.13 | K153: 80,000,000.00 | L153: =I153-K153 -> 70,000,000.00
A154: 152 | B154: Nurol Yatırım Bankası A.Ş. | C154: Banka | D154: Borçlanma Aracı | E154: 2016-10-12 | F154: - | G154: 2016-11-11 | H154: Nitelikli Yatırımcı | I154: 250,000,000.00 | J154: =I154/3.2646 -> 76,579,060.22 | K154: 195,750,000.00 | L154: =I154-K154 -> 54,250,000.00
A155: 153 | B155: Eko Faktoring A.Ş. | C155: Finansal Kurum | D155: Borçlanma Aracı | E155: 2016-10-24 | F155: - | G155: 2016-11-11 | H155: Nitelikli Yatırımcı | I155: 145,000,000.00 | J155: =I155/3.2646 -> 44,415,854.93 | K155: 17,000,000.00 | L155: =I155-K155 -> 128,000,000.00
A156: 154 | B156: Odea Bank A.Ş. | C156: Banka | D156: Borçlanma Aracı | E156: 2016-09-29 | F156: - | G156: 2016-11-22 | H156: Tahsisli/Nitelikli Yatırımcı | I156: 700,000,000.00 | J156: =I156/3.3644 -> 208,060,872.67 | K156: 0.00 | L156: =I156-K156 -> 700,000,000.00
A157: 155 | B157: Aktif Yatırım Bankası A.Ş. (2) No’lu Varlık Finansmanı Fonu | C157: Fonlar | D157: VDMK | E157: 2016-10-10 | F157: - | G157: 2016-11-22 | H157: Nitelikli Yatırımcı | I157: 300,000,000.00 | J157: =I157/3.3644 -> 89,168,945.43 | K157: 300,000,000.00 | L157: =I157-K157 -> 0.00
A158: 156 | B158: Şekerbank T.A.Ş. | C158: Banka | D158: Borçlanma Aracı | E158: 2016-10-11 | F158: - | G158: 2016-11-22 | H158: Tahsisli/Nitelikli Yatırımcı | I158: 1,000,000,000.00 | J158: =I158/3.3644 -> 297,229,818.10 | K158: 125,000,000.00 | L158: =I158-K158 -> 875,000,000.00
A159: 157 | B159: Derindere Turizm Otomotiv Ticaret ve Sanayi A.Ş. | C159: Reel Sektör | D159: Borçlanma Aracı | E159: 2016-10-13 | F159: - | G159: 2016-11-22 | H159: Tahsisli/Nitelikli Yatırımcı | I159: 250,000,000.00 | J159: =I159/3.3644 -> 74,307,454.52 | K159: 0.00 | L159: =I159-K159 -> 250,000,000.00
A160: 158 | B160: Finansbank A.Ş. | C160: Banka | D160: Borçlanma Aracı | E160: 2016-10-14 | F160: - | G160: 2016-11-22 | H160: Halka Arz/Nitelikli Yatırımcı/Tahsisli | I160: 10,000,000,000.00 | J160: =I160/3.3644 -> 2,972,298,180.95 | K160: 272,968,300.00 | L160: =I160-K160 -> 9,727,031,700.00
A161: 159 | B161: Uşak Seramik Sanayi A.Ş. | C161: Reel Sektör | D161: Borçlanma Aracı | E161: 2016-10-19 | F161: - | G161: 2016-11-22 | H161: Nitelikli Yatırımcı | I161: 50,000,000.00 | J161: =I161/3.3644 -> 14,861,490.90 | K161: 0.00 | L161: =I161-K161 -> 50,000,000.00
A162: 160 | B162: Alternatif Finansal Kiralama A.Ş. | C162: Finansal Kurum | D162: Borçlanma Aracı | E162: 2016-10-24 | F162: - | G162: 2016-11-22 | H162: Nitelikli Yatırımcı | I162: 500,000,000.00 | J162: =I162/3.3644 -> 148,614,909.05 | K162: 0.00 | L162: =I162-K162 -> 500,000,000.00
A163: 161 | B163: Tacirler Yatırım Menkul Değerler A.Ş. | C163: Finansal Kurum | D163: Borçlanma Aracı | E163: 2016-10-26 | F163: - | G163: 2016-11-22 | H163: Nitelikli Yatırımcı | I163: 350,000,000.00 | J163: =I163/3.3644 -> 104,030,436.33 | K163: 0.00 | L163: =I163-K163 -> 350,000,000.00
A164: 162 | B164: Sardes Faktoring A.Ş. | C164: Finansal Kurum | D164: Borçlanma Aracı | E164: 2016-11-07 | F164: - | G164: 2016-11-22 | H164: Nitelikli Yatırımcı | I164: 20,000,000.00 | J164: =I164/3.3644 -> 5,944,596.36 | K164: 0.00 | L164: =I164-K164 -> 20,000,000.00
A165: 163 | B165: TF Varlık Kiralama A.Ş. | C165: Finansal Kurum | D165: Kira Sertifikası | E165: 2016-09-29 | F165: - | G165: 2016-11-30 | H165: Halka Arz/Nitelikli Yatırımcı/Tahsisli | I165: 2,000,000,000.00 | J165: =I165/3.4236 -> 584,180,394.91 | K165: 70,000,000.00 | L165: =I165-K165 -> 1,930,000,000.00
A166: 164 | B166: Doğuş Holding A.Ş. | C166: Reel Sektör | D166: Borçlanma Aracı | E166: 2016-10-13 | F166: - | G166: 2016-11-30 | H166: Tahsisli/Nitelikli Yatırımcı | I166: 500,000,000.00 | J166: =I166/3.4236 -> 146,045,098.73 | K166: 0.00 | L166: =I166-K166 -> 500,000,000.00
A167: 165 | B167: Akbank T.A.Ş. | C167: Banka | D167: Borçlanma Aracı | E167: 2016-10-31 | F167: - | G167: 2016-11-30 | H167: Yurt Dışı | I167: - | J167: - | K167: - | L167: - | M167: 4,000,000,000.00 | N167: ABD Doları | O167: 0.00 | P167: =M167-O167 -> 4,000,000,000.00 | Q167: 0.00
A168: 166 | B168: Turkcell Finansman A.Ş. | C168: Finansal Kurum | D168: Borçlanma Aracı | E168: 2016-11-04 | F168: - | G168: 2016-11-30 | H168: Nitelikli Yatırımcı | I168: 1,500,000,000.00 | J168: =I168/3.4236 -> 438,135,296.18 | K168: 250,000,000.00 | L168: =I168-K168 -> 1,250,000,000.00
A169: 167 | B169: Netlog Lojistik Hizmetleri A.Ş. | C169: Reel Sektör | D169: Borçlanma Aracı | E169: 2016-10-21 | F169: - | G169: 2016-12-09 | H169: Nitelikli Yatırımcı | I169: 110,000,000.00 | J169: =I169/3.4586 -> 31,804,776.50 | K169: 0.00 | L169: =I169-K169 -> 110,000,000.00
A170: 168 | B170: Deutsche Bank AG | C170: Banka | D170: Varant | E170: 2016-10-25 | F170: - | G170: 2016-12-09 | H170: Halka Arz | I170: 100,000,000.00 | J170: =I170/3.4586 -> 28,913,433.18 | K170: 2,500,000.00 | L170: =I170-K170 -> 97,500,000.00
A171: 169 | B171: Ak Yatırım Menkul Değerler A.Ş. | C171: Finansal Kurum | D171: Borçlanma Aracı | E171: 2016-10-27 | F171: - | G171: 2016-12-09 | H171: Nitelikli Yatırımcı | I171: 550,000,000.00 | J171: =I171/3.4586 -> 159,023,882.50 | K171: 176,600,000.00 | L171: =I171-K171 -> 373,400,000.00
A172: 170 | B172: Gözde Girişim Sermayesi Yatırım Ortaklığı A.Ş. | C172: Finansal Kurum | D172: Borçlanma Aracı | E172: 2016-11-01 | F172: - | G172: 2016-12-09 | H172: Nitelikli Yatırımcı | I172: 500,000,000.00 | J172: =I172/3.4586 -> 144,567,165.91 | K172: 0.00 | L172: =I172-K172 -> 500,000,000.00
A173: 171 | B173: Türk Ekonomi Bankası A.Ş. | C173: Banka | D173: Borçlanma Aracı | E173: 2016-11-08 | F173: - | G173: 2016-12-09 | H173: Nitelikli Yatırımcı | I173: 250,000,000.00 | J173: =I173/3.4586 -> 72,283,582.95 | K173: 0.00 | L173: =I173-K173 -> 250,000,000.00
A174: 172 | B174: Kapital Faktoring A.Ş. | C174: Finansal Kurum | D174: Borçlanma Aracı | E174: 2016-11-08 | F174: - | G174: 2016-12-09 | H174: Nitelikli Yatırımcı | I174: 250,000,000.00 | J174: =I174/3.4586 -> 72,283,582.95 | K174: 0.00 | L174: =I174-K174 -> 250,000,000.00
A175: 173 | B175: Yapı Kredi Faktoring A.Ş. | C175: Finansal Kurum | D175: Borçlanma Aracı | E175: 2016-11-14 | F175: - | G175: 2016-12-09 | H175: Nitelikli Yatırımcı | I175: 669,000,000.00 | J175: =I175/3.4586 -> 193,430,867.98 | K175: 0.00 | L175: =I175-K175 -> 669,000,000.00
A176: 174 | B176: Bereket Varlık Kiralama A.Ş. | C176: Finansal Kurum | D176: Kira Sertifikası | E176: 2016-11-17 | F176: - | G176: 2016-12-19 | H176: Tahsisli/Nitelikli Yatırımcı | I176: 1,000,000,000.00 | J176: =I176/3.501 -> 285,632,676.38 | K176: 75,000,000.00 | L176: =I176-K176 -> 925,000,000.00
A177: 175 | B177: Fiba Faktoring A.Ş. | C177: Finansal Kurum | D177: Borçlanma Aracı | E177: 2016-11-28 | F177: - | G177: 2016-12-19 | H177: Nitelikli Yatırımcı | I177: 500,000,000.00 | J177: =I177/3.501 -> 142,816,338.19 | K177: 0.00 | L177: =I177-K177 -> 500,000,000.00
A178: 176 | B178: Türk Traktör ve Ziraat Makineleri A.Ş. | C178: Reel Sektör | D178: Borçlanma Aracı | E178: 2016-12-02 | F178: - | G178: 2016-12-19 | H178: Tahsisli/Nitelikli Yatırımcı | I178: 200,000,000.00 | J178: =I178/3.501 -> 57,126,535.28 | K178: 0.00 | L178: =I178-K178 -> 200,000,000.00
A179: 177 | B179: Aktif Yatırım Bankası A.Ş. | C179: Banka | D179: Borçlanma Aracı | E179: 2016-12-05 | F179: - | G179: 2016-12-19 | H179: Tahsisli/Nitelikli Yatırımcı | I179: 50,000,000.00 | J179: =I179/3.501 -> 14,281,633.82 | K179: 0.00 | L179: =I179-K179 -> 50,000,000.00
A180: 178 | B180: Aktif Yatırım Bankası A.Ş. | C180: Banka | D180: Borçlanma Aracı | E180: 2016-12-05 | F180: - | G180: 2016-12-19 | H180: Yurt Dışı | I180: - | J180: - | K180: - | L180: - | M180: 95,000,000.00 | N180: Avro | O180: 0.00 | P180: =M180-O180 -> 95,000,000.00 | Q180: 0.00
A181: 179 | B181: Akfen Holding A.Ş. | C181: Reel Sektör | D181: Borçlanma Aracı | E181: 2016-11-25 | F181: - | G181: 2016-12-29 | H181: Nitelikli Yatırımcı | I181: 600,000,000.00 | J181: =I181/3.5382 -> 169,577,751.40 | K181: 0.00 | L181: =I181-K181 -> 600,000,000.00
A182: 180 | B182: Enerjisa Elektrik Dağıtım A.Ş. | C182: Reel Sektör | D182: Borçlanma Aracı | E182: 2016-12-01 | F182: - | G182: 2016-12-29 | H182: Nitelikli Yatırımcı | I182: 1,000,000,000.00 | J182: =I182/3.5382 -> 282,629,585.67 | K182: 0.00 | L182: =I182-K182 -> 1,000,000,000.00
A183: 181 | B183: İş Faktoring A.Ş. | C183: Finansal Kurum | D183: Borçlanma Aracı | E183: 2016-12-05 | F183: - | G183: 2016-12-29 | H183: Tahsisli/Nitelikli Yatırımcı | I183: 412,000,000.00 | J183: =I183/3.5382 -> 116,443,389.29 | K183: 0.00 | L183: =I183-K183 -> 412,000,000.00
A184: 182 | B184: Türkiye Vakıflar Bankası T.A.O. | C184: Banka | D184: Borçlanma Aracı | E184: 2016-12-14 | F184: - | G184: 2016-12-29 | H184: Yurt Dışı | I184: - | J184: - | K184: - | L184: - | M184: 5,000,000,000.00 | N184: ABD Doları | O184: 0.00 | P184: =M184-O184 -> 5,000,000,000.00 | Q184: 0.00
A185: 183 | B185: Deniz Faktoring A.Ş. | C185: Finansal Kurum | D185: Borçlanma Aracı | E185: 2016-12-19 | F185: - | G185: 2016-12-29 | H185: Nitelikli Yatırımcı | I185: 154,000,000.00 | J185: =I185/3.5382 -> 43,524,956.19 | K185: 0.00 | L185: =I185-K185 -> 154,000,000.00
A186: 184 | B186: Burgan Bank A.Ş. | C186: Banka | D186: Borçlanma Aracı | E186: 19.09.2016 14.10.2016 | F186: - | G186: 2016-12-29 | H186: Tahsisli/Nitelikli Yatırımcı | I186: 2,000,000,000.00 | J186: =I186/3.5382 -> 565,259,171.33 | K186: 0.00 | L186: =I186-K186 -> 2,000,000,000.00
A187: 185 | B187: Ümran Göz Sağlığı ve Kontak Lens Uygulama Hizmetleri Ticaret A.Ş. | C187: Reel Sektör | D187: Borçlanma Aracı | E187: 2015-12-10 | F187: 2016-03-21 | G187: -
A188: 186 | B188: Söktaş Tekstil Sanayi ve Ticaret A.Ş. | C188: Reel Sektör | D188: Borçlanma Aracı | E188: 2016-03-17 | F188: 2016-04-26 | G188: -
A189: 187 | B189: Akdeniz Faktoring A.Ş. | C189: Finansal Kurum | D189: Borçlanma Aracı | E189: 2016-04-20 | F189: 2016-04-26 | G189: -
A190: 188 | B190: TFKB Varlık Kiralama A.Ş. | C190: Finansal Kurum | D190: Kira Sertifikası | E190: 2016-04-29 | F190: 2016-06-07 | G190: -
A191: 189 | B191: Aktif Yatırım Bankası A.Ş. (3) No'lu Varlık Finansmanı Fonu | C191: Fonlar | D191: VDMK | E191: 2015-09-14 | F191: 2016-06-10 | G191: -
A192: 191 | B192: Tera Menkul Değerler A.Ş. (1) No’lu Ticari Krediler Varlık Finansman Fonu | C192: Fonlar | D192: VDMK | E192: 2016-01-13 | F192: 2016-10-31 | G192: -
A193: 190 | B193: Aktif Yatırım Bankası A.Ş. | C193: Banka | D193: Borçlanma Aracı | E193: 2016-01-06
A194: 192 | B194: Aktif Yatırım Bankası A.Ş. | C194: Banka | D194: Borçlanma Aracı | E194: 2016-03-31
A195: 193 | B195: Metal Yapı Konut A.Ş. | C195: Reel Sektör | D195: Borçlanma Aracı | E195: 2016-06-16
A196: 194 | B196: İnanlar İnşaat A.Ş. | C196: Reel Sektör | D196: Borçlanma Aracı | E196: 2016-06-17
A197: 195 | B197: Nurol Holding A.Ş. | C197: Reel Sektör | D197: Borçlanma Aracı | E197: 2016-08-04
A198: 196 | B198: Doğuş Holding A.Ş. | C198: Reel Sektör | D198: Borçlanma Aracı | E198: 2016-09-08
A199: 197 | B199: Final Varlık Yönetim A.Ş. | C199: Finansal Kurum | D199: Borçlanma Aracı | E199: 2016-09-23
A200: 198 | B200: Ak Faktoring A.Ş. | C200: Finansal Kurum | D200: Borçlanma Aracı | E200: 2016-10-12
... 90 more rows
